bitfinex/quotes_BTCUSD_20250114
["timestamp","ask_amount","ask_price","bid_price","bid_amount"]
[1736861380633,0.00309257,95978.0,95977.0,0.10422692]
[1736861380828,0.00209257,95978.0,95977.0,0.10422692]
[1736861381387,0.00209257,95978.0,95977.0,0.10522692]
[1736861381947,0.00209257,95978.0,95977.0,0.10622692]
[1736861382383,0.00209257,95978.0,95977.0,0.002]
[1736861383186,0.00209257,95978.0,95977.0,0.001]
[1736861383391,0.00209257,95978.0,95977.0,0.10522692]
[1736861383657,0.00309257,95978.0,95977.0,0.31360992]
[1736861383788,0.00209257,95978.0,95977.0,0.31360992]
[1736861384189,0.00509257,95978.0,95977.0,0.31260992]
[1736861384407,0.00209257,95978.0,95977.0,0.31260992]
[1736861384804,0.00209257,95978.0,95977.0,0.31460992]
[1736861385126,0.00209257,95978.0,95977.0,0.31260992]
[1736861385530,0.00209257,95978.0,95977.0,0.31360992]
[1736861386387,0.00209257,95978.0,95977.0,0.31646332]
[1736861386632,0.00209257,95978.0,95977.0,0.31446332]
[1736861387022,0.00209257,95978.0,95977.0,0.41646332]
[1736861388342,0.00209257,95978.0,95977.0,0.4267394]
[1736861388541,0.00209257,95978.0,95977.0,0.3267394]
[1736861393259,0.00209257,95978.0,95977.0,0.0038534]
[1736861394217,0.00209257,95978.0,95977.0,0.20912209]
[1736861394479,0.00209257,95978.0,95977.0,0.61029309]
[1736861394712,0.00209257,95978.0,95977.0,0.65248532]
[1736861394964,0.00209257,95978.0,95977.0,0.65148532]
[1736861395204,0.00309257,95978.0,95977.0,0.65148532]
[1736861395897,0.00309257,95978.0,95977.0,0.64948532]
[1736861396144,0.00309257,95978.0,95977.0,0.67066296]
[1736861396309,0.00509257,95978.0,95977.0,0.67066296]
[1736861396606,0.00209257,95978.0,95977.0,0.67066296]
[1736861396847,0.00309257,95978.0,95977.0,0.67766296]
[1736861397485,0.00309257,95978.0,95977.0,0.82466296]
[1736861397684,0.00309257,95978.0,95977.0,0.92766296]
[1736861397812,0.00309257,95978.0,95977.0,1.06522472]
[1736861398431,0.00309257,95978.0,95977.0,1.02756296]
[1736861398851,0.00309257,95978.0,95977.0,1.05056296]
[1736861399037,0.00209257,95978.0,95977.0,1.04656296]
[1736861399449,0.00309257,95978.0,95977.0,1.05056296]
[1736861399680,0.00309257,95978.0,95977.0,1.07828698]
[1736861399883,0.00179362,95995.0,95994.0,0.2]
[1736861400082,4e-05,96000.0,95994.0,0.2]
[1736861400083,4e-05,96000.0,95999.0,0.35]
[1736861400312,4e-05,96000.0,95999.0,0.45422692]
[1736861400470,4e-05,96000.0,95999.0,0.48495094]
[1736861401079,4e-05,96000.0,95999.0,1.28175494]
[1736861401293,0.00179341,96063.0,96056.0,0.20821]
[1736861401512,0.14441003,96136.0,96057.0,3.16704781]
[1736861401705,0.1,96191.0,96142.0,0.1]
[1736861402061,0.01036082,96184.0,96179.0,0.207945]
[1736861402279,0.68608489,96211.0,96196.0,0.22630577]
[1736861402488,1.27175838,96214.0,96213.0,0.20330577]
[1736861402703,0.72629335,96214.0,96213.0,2.95516152]
[1736861402905,0.72629335,96214.0,96213.0,3.19420577]
[1736861402906,0.23440851,96214.0,96213.0,3.19420577]
[1736861403121,4.7672256,96265.0,96255.0,0.00330577]
[1736861403301,0.3252,96577.0,96312.0,0.00330577]
[1736861403302,0.09669423,96350.0,96312.0,0.00330577]
[1736861403547,0.008971,96352.0,96341.0,0.1453618]
[1736861403771,0.008971,96352.0,96330.0,1.04335045]
[1736861403772,0.10422692,96351.0,96343.0,0.207591]
[1736861403987,4e-05,96400.0,96360.0,0.00666154]
[1736861404196,0.00074175,96375.0,96365.0,0.00666154]
[1736861404411,0.0007416,96408.0,96396.0,0.173]
[1736861404622,0.0007416,96408.0,96366.0,2.65153755]
[1736861404623,0.207213,96519.0,96506.0,0.01288295]
[1736861404825,0.038818,96473.0,96409.0,0.00103683]
[1736861405032,0.038818,96473.0,96339.0,0.3]
[1736861405033,0.1,96466.0,96438.0,0.08699998]
[1736861405239,0.1,96466.0,96405.0,0.1]
[1736861405240,0.1,96482.0,96439.0,0.10422692]
[1736861405447,0.1,96482.0,96407.0,0.1]
[1736861405448,0.207192,96529.0,96481.0,0.10422692]
[1736861405655,0.207192,96529.0,96444.0,0.15]
[1736861405656,0.00070149,96520.0,96470.0,0.28642458]
[1736861405856,0.00070149,96520.0,96445.0,0.00103634]
[1736861405857,0.01300002,96474.0,96427.0,0.08699998]
[1736861406066,0.28712607,96520.0,96482.0,1.9902593]
[1736861406067,0.01300002,96494.0,96482.0,1.9902593]
[1736861406283,0.1,96518.0,96482.0,1.9902593]
[1736861406487,0.00070149,96520.0,96510.0,0.08699998]
[1736861406692,0.0124933,96560.0,96523.0,0.29420398]
[1736861406900,0.00074111,96549.0,96534.0,0.20718]
[1736861407073,0.00074111,96549.0,96497.0,0.1]
[1736861407074,0.00070111,96549.0,96527.0,0.08699998]
[1736861407344,0.00070111,96549.0,96539.0,0.28642458]
[1736861407559,0.10422692,96548.0,96524.0,0.08699998]
[1736861407788,4e-05,96600.0,96599.0,0.08699998]
[1736861407986,4e-05,96600.0,96585.0,0.08699998]
[1736861407987,0.1,96586.0,96585.0,0.08699998]
[1736861408205,0.1,96586.0,96532.0,0.08699998]
[1736861408206,0.1,96568.0,96532.0,0.08699998]
[1736861408412,0.00074099,96570.0,96569.0,0.18699998]
[1736861408621,0.0007409,96580.0,96569.0,0.08366063]
[1736861408826,0.0007409,96580.0,96579.0,0.1]
[1736861409028,0.0007409,96580.0,96579.0,0.28788755]
[1736861409246,0.00415,96627.0,96581.0,0.08616027]
[1736861409462,0.28642458,96640.0,96601.0,0.1]
[1736861409671,0.28642458,96640.0,96613.0,0.10422692]
[1736861409880,0.00168813,96646.0,96623.0,0.1]
[1736861410093,0.10422692,96645.0,96633.0,0.07453133]
[1736861410299,0.00168813,96646.0,96645.0,0.07453133]
[1736861410300,0.00094746,96646.0,96645.0,0.07453133]
[1736861410501,0.00094746,96646.0,96645.0,0.22093133]
[1736861410710,0.041457,96719.0,96673.0,0.07093133]
[1736861410711,0.02831784,96719.0,96673.0,0.07093133]
[1736861410914,0.00074052,96680.0,96674.0,1.94153133]
[1736861411122,0.206598,96806.0,96674.0,1.94153133]
[1736861411123,9.372e-05,96719.0,96691.0,0.07093133]
[1736861411334,0.01561248,96787.0,96727.0,0.1]
[1736861411541,0.01561248,96787.0,96761.0,0.1]
[1736861411542,0.28642458,96780.0,96761.0,0.1]
[1736861411764,0.28642458,96780.0,96779.0,0.001234]
[1736861411765,0.206654,96780.0,96779.0,0.001234]
[1736861411977,0.206658,96778.0,96755.0,0.1]
[1736861412206,0.08316,96779.0,96703.0,0.08438752]
[1736861412207,0.01561248,96743.0,96703.0,0.08438752]
[1736861412415,0.28642458,96720.0,96692.0,1.08980176]
[1736861412636,0.28642458,96700.0,96641.0,0.1]
[1736861412842,0.08316,96779.0,96673.0,0.59054446]
[1736861412843,0.1,96734.0,96673.0,0.59054446]
[1736861413062,0.1,96734.0,96608.0,1.03849411]
[1736861413063,0.1,96732.0,96635.0,0.05189052]
[1736861413332,0.1,96709.0,96644.0,0.05105557]
[1736861413548,0.09996,96697.0,96652.0,0.206927]
[1736861413768,0.10074001,96739.0,96570.0,1.03849411]
[1736861413769,0.09996,96699.0,96570.0,1.03849411]
[1736861413982,0.28642458,96680.0,96644.0,0.00049996]
[1736861414154,0.1,96683.0,96590.0,0.28642458]
[1736861414380,0.1,96717.0,96682.0,0.09591027]
[1736861414496,0.1,96713.0,96700.0,0.10422692]
[1736861414698,0.09996,96691.0,96605.0,0.207028]
[1736861414945,0.09996,96619.0,96606.0,0.48617176]
[1736861415156,0.09992,96619.0,96607.0,0.161884]
[1736861415361,0.09992,96619.0,96606.0,0.05243576]
[1736861415561,0.00548898,96618.0,96606.0,0.05243576]
[1736861415761,0.00548898,96618.0,96617.0,0.10422692]
[1736861416006,0.1,96627.0,96617.0,0.10422692]
[1736861416208,0.1,96619.0,96591.0,0.041424]
[1736861416424,0.00514407,96626.0,96614.0,0.10422692]
[1736861416629,3.8e-07,96652.0,96647.0,0.206937]
[1736861416836,0.1,96679.0,96649.0,0.356934]
[1736861417056,0.32202877,96730.0,96614.0,0.10422692]
[1736861417057,0.00074023,96678.0,96651.0,0.15]
[1736861417489,0.00074023,96678.0,96653.0,0.15]
[1736861417693,0.00074023,96678.0,96661.0,0.10422692]
[1736861417925,0.1,96675.0,96674.0,0.10422692]
[1736861418360,0.1,96675.0,96637.0,0.15]
[1736861418361,0.05,96663.0,96653.0,0.10422692]
[1736861418576,0.1,96716.0,96654.0,4.191009]
[1736861418778,0.10422692,96715.0,96681.0,0.15]
[1736861419003,0.3,96774.0,96687.0,0.1]
[1736861419209,0.3,96774.0,96680.0,0.32202877]
[1736861419210,0.00074023,96760.0,96706.0,0.15]
[1736861419416,0.00074023,96760.0,96759.0,1.5]
[1736861419662,0.01035551,96865.0,96790.0,0.32202877]
[1736861419663,0.02109462,96833.0,96790.0,0.32202877]
[1736861419842,0.02109462,96833.0,96759.0,6.37142911]
[1736861419843,0.1,96912.0,96820.0,0.32202877]
[1736861420060,0.1,96912.0,96791.0,3.12507]
[1736861420061,0.02020954,96880.0,96872.0,0.19873096]
[1736861420189,4.8e-05,96937.0,96873.0,0.17832618]
[1736861420190,0.00073983,96876.0,96873.0,0.17832618]
[1736861420396,0.021095,96924.0,96873.0,0.17832618]
[1736861420397,0.021095,96924.0,96881.0,0.17758635]
[1736861420595,0.10005003,96888.0,96882.0,0.17708583]
[1736861420800,0.10005003,96888.0,96815.0,0.1]
[1736861421060,0.10005003,96888.0,96851.0,0.1]
[1736861421221,0.09505003,96888.0,96857.0,0.176506]
[1736861421397,0.09505003,96888.0,96810.0,0.32202877]
[1736861421398,0.09505003,96888.0,96858.0,0.65442427]
[1736861421636,0.01149399,96885.0,96870.0,0.11457435]
[1736861421867,0.09505003,96888.0,96871.0,0.27749135]
[1736861422070,0.1,96920.0,96913.0,0.01456491]
[1736861422297,0.00014967,96925.0,96906.0,0.01456491]
[1736861422494,0.206348,96924.0,96907.0,0.01456491]
[1736861422697,0.10437659,96925.0,96908.0,0.10422692]
[1736861422698,0.10422692,96923.0,96908.0,0.10422692]
[1736861422924,0.00014967,96925.0,96922.0,1.60422692]
[1736861423125,0.00014967,96925.0,96924.0,0.10422692]
[1736861423330,0.00014967,96925.0,96924.0,0.01456491]
[1736861423534,0.00014967,96925.0,96924.0,1.34468592]
[1736861423692,0.00014967,96925.0,96924.0,1.28031]
[1736861423891,0.00014967,96925.0,96924.0,0.10422692]
[1736861424129,0.00014967,96925.0,96924.0,1.60422692]
[1736861424330,0.00014967,96925.0,96924.0,1.75422692]
[1736861424531,0.00014967,96925.0,96924.0,2.14177292]
[1736861424717,4.8e-05,96937.0,96925.0,0.15]
[1736861424921,4.8e-05,96937.0,96929.0,0.10422692]
[1736861425121,4.8e-05,96937.0,96929.0,0.10164326]
[1736861425325,0.20633,96932.0,96929.0,0.00164326]
[1736861425557,0.20633,96932.0,96884.0,0.1]
[1736861425558,0.00683234,96930.0,96906.0,0.1]
[1736861425766,0.00027478,96930.0,96866.0,0.1]
[1736861426014,0.00027478,96930.0,96880.0,0.32202877]
[1736861426233,0.00527478,96930.0,96881.0,0.609234]
[1736861426458,0.206336,96929.0,96869.0,0.1]
[1736861426663,0.32202877,96920.0,96871.0,0.1]
[1736861426867,0.32202877,96900.0,96897.0,0.1]
[1736861427093,0.00568809,96919.0,96896.0,0.1]
[1736861427301,0.00568809,96919.0,96866.0,0.001]
[1736861427302,0.00073944,96929.0,96866.0,0.001]
[1736861427510,0.00579413,96918.0,96866.0,0.001]
[1736861427715,0.1,96913.0,96867.0,1.14578]
[1736861427976,0.00566976,96917.0,96915.0,0.206364]
[1736861428185,0.00566976,96917.0,96880.0,0.32202877]
[1736861428186,0.00073944,96924.0,96916.0,2.339475]
[1736861428487,0.00088905,96924.0,96917.0,1.089402]
[1736861428708,0.009,96920.0,96912.0,0.1]
[1736861429042,0.009,96920.0,96870.0,0.206461]
[1736861429043,0.009,96920.0,96916.0,0.1]
[1736861429257,0.00223927,96955.0,96917.0,0.670915]
[1736861429503,0.00223927,96955.0,96936.0,1.5]
[1736861429721,0.0015,96955.0,96924.0,1.169116]
[1736861429924,0.0015,96955.0,96925.0,0.22662]
[1736861430127,0.00073927,96971.0,96936.0,0.25]
[1736861430324,0.00073927,96971.0,96937.0,0.023]
[1736861430543,0.00073927,96971.0,96916.0,0.1]
[1736861430752,0.00240787,96981.0,96912.0,0.001]
[1736861430948,0.00240787,96981.0,96913.0,0.556239]
[1736861431147,0.00240787,96981.0,96930.0,0.32202877]
[1736861431289,0.23820496,97000.0,96940.0,0.32202877]
[1736861431651,0.23820496,97000.0,96963.0,0.10422692]
[1736861431652,0.00073913,96983.0,96963.0,0.10422692]
[1736861431846,0.0004991,96973.0,96955.0,0.15]
[1736861432147,0.0004991,96973.0,96972.0,0.10422692]
[1736861432791,0.00073902,97007.0,96989.0,0.1]
[1736861432993,0.00073902,97007.0,97006.0,1.5]
[1736861433323,0.1,97041.0,97006.0,0.10422692]
[1736861433603,0.10422692,97040.0,96986.0,0.1]
[1736861433809,0.206081,97049.0,97011.0,0.10422692]
[1736861434028,0.32276758,97050.0,97012.0,0.10422692]
[1736861434236,0.32276758,97050.0,96959.0,0.1]
[1736861434237,0.11896523,97049.0,97003.0,0.1]
[1736861434445,0.11896523,97049.0,97004.0,0.32312592]
[1736861434446,0.10422692,97049.0,97004.0,0.32312592]
[1736861434657,0.10513712,97049.0,97013.0,1.5]
[1736861434889,0.10422692,97048.0,97014.0,0.24346092]
[1736861435099,0.10422692,97048.0,97013.0,1.5]
[1736861435100,0.0009102,97049.0,97024.0,0.1]
[1736861435354,0.0009102,97049.0,97021.0,0.10422692]
[1736861435355,0.00073881,97061.0,97045.0,0.206089]
[1736861435552,0.01042059,97149.0,97058.0,0.1]
[1736861435754,9.69e-05,97150.0,97072.0,0.1]
[1736861435958,0.205906,97132.0,97085.0,0.1]
[1736861436159,0.205906,97132.0,97085.0,0.20422692]
[1736861436160,0.32202877,97120.0,97085.0,0.20422692]
[1736861436367,0.32202877,97100.0,97085.0,1.64232566]
[1736861436568,0.32202877,97100.0,97085.0,0.10422692]
[1736861436779,0.32202877,97100.0,97000.0,0.206184]
[1736861436780,0.01075915,97086.0,97064.0,0.03809874]
[1736861436986,0.1,97055.0,96983.0,1.5]
[1736861437201,0.1,97050.0,97041.0,0.07692692]
[1736861437443,0.1,97050.0,96984.0,1.934934]
[1736861437444,0.15,97049.0,97042.0,0.0849281]
[1736861437618,0.1,97035.0,97024.0,0.001]
[1736861437828,0.09375,97025.0,97024.0,0.001]
[1736861438033,0.1,97092.0,97027.0,0.206126]
[1736861438246,0.0794,97118.0,97056.0,0.10422692]
[1736861438454,0.32202877,97100.0,97056.0,0.10422692]
[1736861438869,0.1794,97118.0,97057.0,0.102275]
[1736861439074,0.1794,97118.0,97083.0,1.5]
[1736861439075,0.10422692,97095.0,97083.0,1.5]
[1736861439325,0.0794,97118.0,97084.0,0.23462192]
[1736861439541,0.0794,97118.0,97084.0,0.10422692]
[1736861439749,0.00062366,97096.0,97094.0,0.10422692]
[1736861439953,0.00062366,97096.0,97095.0,0.10422692]
[1736861440167,0.00062366,97096.0,97063.0,0.1]
[1736861440379,0.005,97086.0,97065.0,0.1]
[1736861440584,0.005,97086.0,97042.0,0.306094]
[1736861440787,0.005,97086.0,97073.0,0.10422692]
[1736861440986,0.00062366,97096.0,97073.0,0.10422692]
[1736861441201,0.00062366,97096.0,97024.0,0.04127]
[1736861441202,0.10422692,97095.0,97024.0,0.04127]
[1736861441410,0.1,97105.0,97052.0,0.10422692]
[1736861441612,0.34422692,97094.0,97052.0,0.10422692]
[1736861441828,0.15,97079.0,97035.0,0.01]
[1736861442032,0.15,97079.0,96990.0,0.32202877]
[1736861442033,0.15,97077.0,97022.0,0.01]
[1736861442235,0.004,97025.0,97010.0,0.01]
[1736861442440,0.004,97025.0,97010.0,0.041285]
[1736861442674,0.004,97025.0,96973.0,1.5]
[1736861442883,0.09,97052.0,96973.0,1.5]
[1736861442884,0.09,97045.0,96982.0,0.01]
[1736861443102,0.10422692,97044.0,97011.0,0.01]
[1736861443519,0.32202877,97040.0,96985.0,0.01]
[1736861443730,0.10422692,97039.0,96986.0,0.10422692]
[1736861443931,0.10422692,97039.0,96998.0,0.01]
[1736861444257,0.0794,97059.0,96998.0,0.10422692]
[1736861444258,0.10422692,97038.0,96998.0,0.10422692]
[1736861444455,0.09,97030.0,96998.0,0.0004987]
[1736861444657,0.10422692,97017.0,96998.0,0.0004987]
[1736861444787,0.10422692,97011.0,96970.0,0.01]
[1736861445024,0.10422692,97011.0,96975.0,0.01]
[1736861445222,0.206109,97036.0,96987.0,0.01]
[1736861445422,0.206109,97036.0,96976.0,0.10422692]
[1736861445423,0.10422692,97035.0,96998.0,0.01]
[1736861445748,0.206049,97065.0,97015.0,0.01]
[1736861445948,0.10422692,97058.0,97016.0,0.10422692]
[1736861446152,0.0486,97072.0,97038.0,0.01]
[1736861446516,0.0822,97102.0,97054.0,0.01]
[1736861446743,0.0822,97102.0,97066.0,0.01]
[1736861446744,0.10422692,97101.0,97066.0,0.01]
[1736861446947,0.32202877,97080.0,97041.0,0.01]
[1736861447104,0.17735909,97060.0,97010.0,0.0056]
[1736861447426,0.32202877,97040.0,97010.0,0.00574977]
[1736861447626,0.205997,97089.0,97015.0,0.01]
[1736861447627,0.32202877,97060.0,97015.0,0.01]
[1736861447833,0.15,97058.0,97015.0,0.10422692]
[1736861448076,0.206032,97072.0,97010.0,0.00574977]
[1736861448077,0.32202877,97080.0,97044.0,0.01]
[1736861448277,0.254567,97103.0,97016.0,0.17979]
[1736861448278,0.10422692,97058.0,97019.0,0.10422692]
[1736861448483,0.0008442,97027.0,97026.0,0.01]
[1736861448860,0.0008442,97027.0,97024.0,0.10422692]
[1736861449288,0.0008442,97027.0,97026.0,0.01]
[1736861449727,0.0008442,97027.0,97024.0,0.00014977]
[1736861450165,0.10422692,97026.0,97016.0,0.001]
[1736861450379,0.10422692,97026.0,96934.0,0.206324]
[1736861450380,0.09,97016.0,96953.0,0.01]
[1736861450588,0.15,97024.0,96911.0,0.1819]
[1736861450589,0.15,97008.0,96957.0,0.10422692]
[1736861450800,0.10422692,97007.0,96966.0,0.01]
[1736861451011,0.0486,97085.0,97026.0,0.01]
[1736861451012,0.0822,97070.0,97026.0,0.01]
[1736861451447,0.0822,97070.0,97026.0,0.26]
[1736861451655,0.0822,97070.0,97026.0,0.360676]
[1736861451860,0.0822,97070.0,97065.0,0.009]
[1736861452068,0.0822,97070.0,97052.0,0.0082]
[1736861452492,0.0822,97070.0,96990.0,0.1]
[1736861452493,0.11244692,97069.0,97020.0,0.0082]
[1736861452708,0.25422692,97046.0,96998.0,0.0082]
[1736861452913,0.15,97041.0,96993.0,0.0082]
[1736861453118,0.0918,97027.0,96980.0,0.0082]
[1736861453321,0.10422692,97030.0,96950.0,0.32202877]
[1736861453322,0.25,97025.0,96950.0,0.32202877]
[1736861453471,0.1,97022.0,96956.0,0.10422692]
[1736861453672,0.15,97009.0,96956.0,0.10422692]
[1736861453879,0.15,97009.0,96960.0,0.32202877]
[1736861454076,0.32202877,97040.0,96960.0,0.32202877]
[1736861454077,0.206098,97042.0,96977.0,0.10422692]
[1736861454256,0.206026,97075.0,97030.0,0.32202877]
[1736861454433,0.10422692,97061.0,97007.0,0.10422692]
[1736861454642,0.206058,97060.0,97007.0,0.10422692]
[1736861454846,0.10422692,97059.0,97007.0,0.10422692]
[1736861455244,0.007,97069.0,97020.0,0.32202877]
[1736861455469,0.00014955,97069.0,97021.0,0.10422692]
[1736861455690,0.00014955,97069.0,97059.0,0.10422692]
[1736861455892,0.008,97062.0,97059.0,0.10422692]
[1736861456067,0.008,97062.0,97020.0,0.32202877]
[1736861456068,0.008,97062.0,97030.0,0.206121]
[1736861456270,0.00014955,97069.0,97060.0,0.10422692]
[1736861456470,0.00014955,97069.0,97040.0,0.32202877]
[1736861456674,0.00614955,97069.0,97041.0,0.10422692]
[1736861457247,0.00614955,97069.0,97048.0,0.10422692]
[1736861457895,0.00614955,97069.0,96999.0,0.1]
[1736861457896,0.11037647,97069.0,97020.0,0.32202877]
[1736861458099,0.206045,97066.0,97021.0,0.10422692]
[1736861458305,0.00014955,97069.0,97020.0,0.001]
[1736861458306,0.007,97062.0,97020.0,0.001]
[1736861458557,0.10422692,97051.0,97020.0,0.001]
[1736861458777,0.15,97042.0,97021.0,0.01499904]
[1736861458981,0.51642292,97041.0,97021.0,0.01499904]
[1736861459183,0.31032492,97041.0,97021.0,0.01499904]
[1736861459465,0.10422692,97041.0,97021.0,0.01499904]
[1736861459667,0.10422692,97041.0,96980.0,0.32202877]
[1736861459973,0.10422692,97041.0,97000.0,0.32202877]
[1736861460173,0.005,97051.0,97024.0,0.10422692]
[1736861460497,0.005,97051.0,97041.0,0.32202877]
[1736861460977,0.005,97051.0,97037.0,0.10422692]
[1736861461191,0.005,97051.0,97000.0,0.42202877]
[1736861461346,0.005,97051.0,96990.0,0.206204]
[1736861461347,0.00099345,97069.0,97020.0,0.32202877]
[1736861461676,0.00099345,97069.0,97040.0,0.32202877]
[1736861461829,0.00099345,97069.0,97059.0,0.32202877]
[1736861462048,0.00099345,97069.0,97048.0,0.10422692]
[1736861462636,0.15,97067.0,97041.0,0.01508305]
[1736861462820,0.001,97051.0,97041.0,0.01008305]
[1736861463020,0.001,97051.0,97037.0,0.002]
[1736861463223,0.00099345,97069.0,97020.0,0.32202877]
[1736861463455,0.10522037,97069.0,97040.0,0.32202877]
[1736861463661,0.00099345,97069.0,97048.0,0.002]
[1736861463865,0.00099345,97069.0,97049.0,0.10422692]
[1736861464103,0.00099345,97069.0,97059.0,0.32202877]
[1736861464304,0.00099345,97069.0,97060.0,0.10525691]
[1736861464507,0.1,97120.0,97060.0,0.10525691]
[1736861464709,0.10422692,97104.0,97061.0,0.64279]
[1736861464916,0.08269829,97105.0,97061.0,0.64279]
[1736861464917,0.00049829,97105.0,97080.0,0.32202877]
[1736861465119,0.00049829,97105.0,97081.0,0.27086769]
[1736861465357,0.00049829,97105.0,97095.0,0.32202877]
[1736861465560,0.00049829,97105.0,97099.0,0.15]
[1736861465734,0.00049829,97105.0,97100.0,1.11657148]
[1736861465970,2.9e-07,97105.0,97104.0,0.10422692]
[1736861466084,0.0008442,97138.0,97106.0,0.023]
[1736861466292,0.1,97210.0,97150.0,0.32202877]
[1736861466494,0.045,97220.0,97170.0,0.32202877]
[1736861466695,0.1008442,97207.0,97151.0,0.10422692]
[1736861466895,0.15014959,97180.0,97170.0,0.32202877]
[1736861467140,0.1605762,97180.0,97151.0,0.10422692]
[1736861467471,0.1605762,97180.0,97152.0,0.00102911]
[1736861467670,0.0838,97200.0,97170.0,0.32202877]
[1736861467844,0.0838,97200.0,97171.0,0.10525604]
[1736861468009,0.0838,97200.0,97171.0,0.00102912]
[1736861468213,0.0838,97200.0,97189.0,0.205783]
[1736861468417,0.0838,97200.0,97188.0,0.32202877]
[1736861468418,0.0838,97200.0,97190.0,0.60157813]
[1736861468639,0.0838,97200.0,97191.0,0.20578]
[1736861468843,0.00040532,97198.0,97188.0,0.32202877]
[1736861469043,0.00040532,97198.0,97189.0,0.285918]
[1736861469242,0.00040532,97198.0,97191.0,0.20578]
[1736861469529,0.00040532,97198.0,97190.0,0.10102862]
[1736861469530,2e-07,97207.0,97197.0,0.10422692]
[1736861469658,0.0292268,97233.0,97217.0,0.1]
[1736861469857,4.5e-05,97250.0,97235.0,0.15]
[1736861470149,4.5e-05,97250.0,97249.0,0.10422692]
[1736861470516,0.00067618,97310.0,97249.0,0.10422692]
[1736861470721,0.0004982,97250.0,97249.0,0.10422692]
[1736861470927,0.0004982,97250.0,97240.0,0.32202877]
[1736861471121,0.0004982,97250.0,97241.0,0.10422692]
[1736861471286,0.0004982,97250.0,97242.0,0.10422692]
[1736861471496,0.0004982,97250.0,97243.0,0.10525513]
[1736861471704,0.0004982,97250.0,97244.0,0.190491]
[1736861471909,0.0004982,97250.0,97245.0,0.26122392]
[1736861472114,0.0004982,97250.0,97246.0,1.26116239]
[1736861472318,0.0008441,97296.0,97247.0,2.58765373]
[1736861472523,0.0008441,97296.0,97266.0,0.1]
[1736861472771,0.00067618,97310.0,97280.0,0.1]
[1736861472981,0.00067618,97310.0,97300.0,0.32202877]
[1736861473195,0.00067618,97310.0,97308.0,0.023]
[1736861473390,0.00067618,97310.0,97309.0,1.51604115]
[1736861473596,0.205369,97386.0,97310.0,0.1]
[1736861473801,0.205443,97351.0,97311.0,0.02380907]
[1736861474009,0.1,97341.0,97311.0,0.00102707]
[1736861474209,0.205499,97324.0,97280.0,0.32202877]
[1736861474421,0.205532,97308.0,97260.0,0.32202877]
[1736861474628,0.1,97289.0,97240.0,0.32202877]
[1736861474832,0.1,97301.0,97240.0,0.32202877]
[1736861475033,0.0049032,97288.0,97250.0,0.00102767]
[1736861475243,0.205499,97324.0,97249.0,0.00014953]
[1736861475244,0.205583,97284.0,97249.0,0.00014953]
[1736861475447,0.00543311,97287.0,97249.0,0.00014953]
[1736861475668,0.1,97283.0,97249.0,0.00014953]
[1736861475884,0.15,97279.0,97249.0,0.00014953]
[1736861476085,0.10422692,97287.0,97249.0,0.00014953]
[1736861476086,0.205622,97266.0,97249.0,0.00014953]
[1736861476299,0.00532297,97265.0,97249.0,0.00014953]
[1736861476530,0.205625,97264.0,97249.0,0.00114953]
[1736861476716,0.00531914,97264.0,97249.0,0.00114953]
[1736861476918,0.006,97284.0,97249.0,0.00114953]
[1736861477120,0.00534137,97263.0,97249.0,0.00114953]
[1736861477324,0.006,97284.0,97253.0,0.32202877]
[1736861477531,0.00533755,97262.0,97254.0,0.1257949]
[1736861477747,0.006,97284.0,97255.0,0.123981]
[1736861477965,0.10422692,97287.0,97270.0,0.32202877]
[1736861478168,0.10422692,97287.0,97271.0,0.51375277]
[1736861478169,0.00957614,97287.0,97271.0,0.51375277]
[1736861478368,0.00957614,97287.0,97273.0,0.205606]
[1736861478580,0.00957614,97287.0,97278.0,0.1]
[1736861478788,0.205428,97358.0,97290.0,0.1]
[1736861479001,0.20545,97347.0,97291.0,0.8773112]
[1736861479208,0.00479949,97347.0,97290.0,0.32202877]
[1736861479414,0.205493,97327.0,97290.0,0.32202877]
[1736861479643,0.00481426,97346.0,97310.0,0.32202877]
[1736861479850,0.00473048,97326.0,97311.0,0.00102742]
[1736861480061,0.20545,97347.0,97310.0,0.32202877]
[1736861480292,0.205454,97345.0,97310.0,0.32202877]
[1736861480475,0.00480663,97344.0,97290.0,0.32202877]
[1736861480702,0.1,97341.0,97311.0,0.13528204]
[1736861480902,0.00478393,97340.0,97311.0,0.13528204]
[1736861481124,0.00134159,97348.0,97291.0,0.10525451]
[1736861481125,0.10422692,97343.0,97291.0,0.10525451]
[1736861481336,0.10422692,97343.0,97310.0,0.32202877]
[1736861481558,0.00480411,97342.0,97311.0,0.13631532]
[1736861481765,0.00134159,97348.0,97311.0,0.00102732]
[1736861481986,0.00134159,97348.0,97330.0,0.32202877]
[1736861482194,0.00134159,97348.0,97331.0,0.32937616]
[1736861482406,0.00134159,97348.0,97331.0,0.00102716]
[1736861482621,0.00134159,97348.0,97310.0,0.32202877]
[1736861482917,0.00134159,97348.0,97322.0,0.10422692]
[1736861483340,0.0775,97332.0,97322.0,0.10422692]
[1736861483550,0.0775,97332.0,97312.0,0.03105512]
[1736861483551,0.205507,97320.0,97312.0,0.03105512]
[1736861483765,0.0775,97332.0,97312.0,0.03105512]
[1736861484176,0.0775,97332.0,97313.0,0.0010276]
[1736861484385,0.205486,97330.0,97312.0,0.03105512]
[1736861484812,0.410974,97330.0,97312.0,0.03105512]
[1736861485012,0.205522,97313.0,97312.0,0.03105512]
[1736861485222,0.205627,97264.0,97230.0,0.32202877]
[1736861485433,0.205597,97278.0,97231.0,0.00102828]
[1736861485632,0.1,97290.0,97219.0,0.04119]
[1736861485633,0.411188,97279.0,97219.0,0.04119]
[1736861485837,0.205596,97278.0,97219.0,0.04119]
[1736861486037,0.1,97309.0,97230.0,0.32202877]
[1736861486245,0.32202877,97320.0,97250.0,0.627153]
[1736861486456,0.0775,97332.0,97270.0,0.32202877]
[1736861486660,0.282983,97332.0,97271.0,0.00102769]
[1736861486868,0.0775,97332.0,97272.0,0.00102763]
[1736861487075,0.0775,97365.0,97290.0,0.32202877]
[1736861487281,0.0775,97365.0,97291.0,0.15]
[1736861487482,0.0775,97365.0,97300.0,0.15]
[1736861487694,0.0490441,97382.0,97337.0,0.10422692]